[Event "NOR-ch Women 2019"]
[Site "Bekkestua"]
[Date "2019.03.17"]
[Round "4.2"]
[White "Kyrkjebo, Marte B."]
[Black "Dolzhikova, Olga"]
[Result "0-1"]
[ECO "B15"]
[WhiteElo "1830"]
[BlackElo "2223"]
[Annotator "NA"]
[PlyCount "106"]
[EventDate "2019.03.15"]
[EventType "swiss"]
[EventCountry "NOR"]
[SourceTitle "playchess.com"]
[Source "ChessBase"]
[SourceQuality "1"]
[TimeControl "5400+30"]

1. e4 {[%emt 0:01:13]} g6 {[%emt 0:00:43]} 2. d4 {[%emt 0:00:45]} Bg7 {[%emt 0:00:36]} 3. Nc3 {[%emt 0:00:42]} c6 {[%emt 0:01:39]} 4. Be3 {[%emt 0:07:30]} d5 {[%emt 0:04:34]} 5. Nf3 {[%emt 0:05:58]} Bg4 {[%emt 0:08:52]} 6. Be2 {[%emt 0:04:25]} e6 {[%emt 0:04:16]} 7. h3 {[%emt 0:03:46] B15: Caro-Kann: 3 Nc3: 3...g6 and 3...dxe4 4 Nxe4 Nf6 5 Nxf6+ exf6} Bxf3 $1 {[%emt 0:00:35]} 8. Bxf3 {[%emt 0:00:32]} Nf6 {[%emt 0:12:00]} (8... Nd7 9. O-O Ne7 10. Re1 O-O 11. Bg5 Re8 12. Qd2 Nb6 13. Rad1 Nc4 14. Qc1 f6 {1-0 (48) Low,Z (2377)-Studer,N (2494) Lienz 2019}) 9. O-O {[%emt 0:07:47]} dxe4 $146 {[%emt 0:09:41]} ({Predecessor:} 9... O-O 10. Qd2 b5 11. e5 Nfd7 12. Be2 a6 13. f4 Qc7 14. Nd1 {0-1 (44) Warmelink,E (1970)-Hirth,U (2108) Groningen 2009}) 10. Bxe4 {[%emt 0:08:03]} Nd5 {[%emt 0:03:39]} 11. Nxd5 {[%emt 0:04:09]} cxd5 {[%emt 0:02:47]} 12. Bd3 {[%emt 0:02:11]} O-O {[%emt 0:02:55]} 13. c3 {[%emt 0:01:11]} Nc6 {[%emt 0:12:41]} 14. Qd2 {[%emt 0:06:07]} Re8 {[%emt 0:02:49]} 15. Rfe1 {[%emt 0:06:33]} Qa5 {[%emt 0:02:38]} 16. Bf4 {[%emt 0:08:21]} Rad8 {[%emt 0:01:35]} 17. Qc2 {[%emt 0:06:03]} b5 {[%emt 0:06:04]} 18. a3 {[%emt 0:02:08]} Qb6 {[%emt 0:02:43]} 19. Qb3 {[%emt 0:06:19]} a6 {[%emt 0:00:59]} 20. Re2 {[%emt 0:02:26]} Rc8 {[%emt 0:03:45]} 21. Qd1 {[%emt 0:01:42]} Red8 {[%emt 0:04:00]} 22. Qe1 {[%emt 0:03:09]} a5 {[%emt 0:02:25]} 23. b4 $2 {[%emt 0:04:34]} (23. h4 $14 {keeps the upper hand.}) 23... Ra8 $2 {[%emt 0:01:52]} (23... axb4 $19 24. axb4 {[#]} Nxd4 $1 {[%mdl 512]}) 24. Rb2 {[%emt 0:01:18]} axb4 {[%emt 0:00:54]} 25. axb4 {[%emt 0:00:40]} Rxa1 {[%emt 0:00:48]} 26. Qxa1 {[%emt 0:00:31]} e5 {[%emt 0:01:44]} 27. Bxe5 {[%emt 0:01:13]} Bxe5 {[%emt 0:02:26]} 28. dxe5 {[%emt 0:00:35]} Nxe5 {[%emt 0:01:11]} 29. Bf1 {[%emt 0:00:56]} Nc4 {[%emt 0:01:25]} 30. Bxc4 {[%emt 0:01:35]} dxc4 {[%emt 0:00:38]} 31. Ra2 {[%emt 0:01:10]} Rd3 {[%emt 0:00:40]} 32. Ra6 {[%emt 0:00:42]} Qc7 {[%emt 0:00:35]} 33. Ra7 {[%emt 0:00:41]} Qe5 {[%emt 0:00:36]} 34. Ra3 $2 {[%emt 0:00:44]} (34. Qc1 $17) 34... Qe2 {[%emt 0:00:43]} 35. Kh2 {[%emt 0:00:50]} Qxf2 {[%emt 0:00:37]} 36. Ra2 $19 {[%emt 0:00:42]} (36. Ra8+ Kg7 37. Re8) 36... Qf4+ {[%emt 0:00:31]} 37. Kg1 {[%emt 0:00:36]} Qe3+ {[%emt 0:00:37]} 38. Kh2 {[%emt 0:00:35]} Qe5+ {[%emt 0:00:37]} 39. Kg1 {[%emt 0:00:34]} Rxc3 {[%emt 0:00:49]} 40. Qf1 {[%emt 0:00:46]} Qe3+ {[%emt 0:00:42]} 41. Qf2 {[%emt 0:00:39]} Rc1+ {[%emt 0:00:39]} 42. Kh2 {[%emt 0:00:32]} Qxf2 {[%emt 0:00:43]} 43. Rxf2 {[%emt 0:00:32]} Rb1 {[%emt 0:00:33]} 44. Re2 {[%emt 0:00:33]} Rxb4 {[%emt 0:00:36]} 45. Re8+ {[%emt 0:00:00]} Kg7 {[%emt 0:00:00]} 46. Rc8 {[%emt 0:00:00]} Rb3 {[%emt 0:00:00]} 47. Kg1 {[%emt 0:00:00]} c3 {[%emt 0:00:00]} 48. Kf2 {[%emt 0:00:00]} b4 {[%emt 0:00:00]} 49. Rc4 {[%emt 0:00:00]} Rb2+ {[%emt 0:00:00]} 50. Kf3 {[%emt 0:00:00]} c2 {[%emt 0:00:00]} 51. Ke3 {[%emt 0:00:00]} b3 {[%emt 0:00:00]} 52. Kd2 {[%emt 0:00:00]} Rb1 {[%emt 0:00:00]} 53. Rc3 {[%emt 0:00:00]} Rd1+ {[%emt 0:00:00]} 0-1

[Event "NOR-ch Women 2019"]
[Site "Bekkestua"]
[Date "2019.03.17"]
[Round "4.3"]
[White "Johnsen, Sylvia"]
[Black "Hina, Ariza"]
[Result "1-0"]
[ECO "A37"]
[WhiteElo "1982"]
[BlackElo "1594"]
[Annotator "NA"]
[PlyCount "75"]
[EventDate "2019.03.15"]
[EventType "swiss"]
[EventCountry "NOR"]
[SourceTitle "playchess.com"]
[Source "ChessBase"]
[SourceQuality "1"]
[TimeControl "5400+30"]

{[%evp 8,49,11,0,0,0,10,-8,-15,-31,-19,0,-22,-23,-11,-40,-17,-22,0,1,38,26,15,0,43,37,31,40,32,34,47,24,37,32767,32767,32767,117,132,148,142,256,32767,291,301]} 1. c4 {[%emt 0:00:32]} c5 {[%emt 0:02:25]} 2. Nc3 {[%emt 0:00:40]} Nc6 {[%emt 0:00:36]} 3. g3 {[%emt 0:00:39]} g6 {[%emt 0:00:35]} 4. Bg2 {[%emt 0:00:34]} Bg7 {[%emt 0:00:36]} 5. Nf3 {[%emt 0:02:18]} e6 {[%emt 0:00:43]} 6. O-O {[%emt 0:00:41]} Nge7 {[%emt 0:00:36]} 7. d3 {[%emt 0:01:02]} O-O {[%emt 0:01:36]} 8. Bg5 {[%emt 0:03:18]} h6 {[%emt 0:02:32]} 9. Be3 {[%emt 0:01:14] A37: Symmetrical English vs ...g6: 4 Bg2 Bg7 5 Nf3} (9. Bd2 b6 10. a3 Bb7 11. Rb1 a5 12. Nb5 d5 13. Qc1 Kh7 14. Rd1 Qd7 15. e3 Rac8 16. Qc2 e5 17. cxd5 Nxd5 {½-½ (85) Almasi,Z (2682)-Ponkratov,P (2613) Riadh 2017}) 9... d6 {[%emt 0:03:57]} 10. Qc1 {[%emt 0:03:35]} Kh7 {[%emt 0:02:09]} 11. Re1 $146 {[%emt 0:03:18]} ({Predecessor:} 11. Rd1 Nf5 12. Bd2 Rb8 13. Rb1 Qd7 14. a3 b6 15. b4 Bb7 16. e3 Rfd8 {0-1 (32) Antonenko,V (2303)-Suleymenov,A (2293) Novosibirsk 2017}) 11... Nf5 {[%emt 0:06:03]} 12. Bd2 {[%emt 0:00:43]} Nfd4 {[%emt 0:01:02]} 13. Nxd4 {[%emt 0:03:01]} Nxd4 {[%emt 0:00:55]} 14. e3 {[%emt 0:01:54]} Nc6 {[%emt 0:03:21]} 15. a3 {[%emt 0:01:39]} Ne5 {[%emt 0:01:14]} 16. Qc2 {[%emt 0:01:03]} Rb8 {[%emt 0:13:55]} 17. b4 {[%emt 0:02:37]} b6 {[%emt 0:02:45]} 18. f4 {[%emt 0:02:11]} Ng4 {[%emt 0:02:42]} 19. h3 {[%emt 0:03:27]} Nf6 {[%emt 0:01:08]} 20. Rab1 {[%emt 0:04:38]} Bb7 {[%emt 0:04:02]} 21. e4 {[%emt 0:02:23]} d5 {[%emt 0:11:08]} (21... Ng8 $11) 22. cxd5 {[%emt 0:02:19]} exd5 {[%emt 0:02:26]} 23. e5 {[%emt 0:01:38]} Ne8 $18 {[%emt 0:04:27]} (23... Nd7 $16 24. Nb5 (24. Bxd5 Bxd5 25. Nxd5 Nxe5 $15 {[%mdl 64] Discovered Attack}) (24. Nxd5 Nxe5 25. Qb3 Bxd5 $15) 24... d4) 24. bxc5 {[%emt 0:01:33]} d4 {[%emt 0:08:06]} 25. Ne4 {[%emt 0:06:45]} bxc5 {[%emt 0:06:21]} 26. Qxc5 {[%emt 0:01:00]} a6 {[%emt 0:02:22]} 27. Ba5 {[%emt 0:02:41]} Qd7 {[%emt 0:02:36]} 28. Qa7 {[%emt 0:02:10]} Qa4 {[%emt 0:07:48]} 29. Qxb8 {[%emt 0:04:49]} Bxe4 {[%emt 0:01:14]} 30. Bxe4 {[%emt 0:01:24]} Qxa5 {[%emt 0:00:58]} 31. Qb4 {[%emt 0:03:23]} Qd8 {[%emt 0:01:23]} 32. Qb6 {[%emt 0:00:45]} Qd7 {[%emt 0:00:44]} 33. Qxa6 {[%emt 0:00:54]} Qxh3 {[%emt 0:00:32]} 34. Kf2 {[%emt 0:02:00]} Qh2+ {[%emt 0:00:39]} 35. Bg2 {[%emt 0:00:47]} Qh5 {[%emt 0:00:49]} 36. Rh1 {[%emt 0:01:06]} Qf5 {[%emt 0:00:54]} 37. Bh3 {[%emt 0:00:52]} Qh5 {[%emt 0:00:49]} 38. Bd7 {[%emt 0:00:54]} 1-0

[Event "NOR-ch Women 2019"]
[Site "Bekkestua"]
[Date "2019.03.17"]
[Round "4.4"]
[White "Eiding, Amanda Mai Irgens"]
[Black "Mrachek, Svetlana"]
[Result "1-0"]
[ECO "C05"]
[WhiteElo "1503"]
[BlackElo "1628"]
[Annotator "NA"]
[PlyCount "114"]
[EventDate "2019.03.15"]
[EventType "swiss"]
[EventCountry "NOR"]
[SourceTitle "playchess.com"]
[Source "ChessBase"]
[SourceQuality "1"]
[TimeControl "5400+30"]

1. e4 {[%emt 0:00:32]} e6 {[%emt 0:00:35]} 2. d4 {[%emt 0:00:36]} d5 {[%emt 0:00:34]} 3. Nd2 {[%emt 0:00:36]} Nf6 {[%emt 0:01:43]} 4. e5 {[%emt 0:00:42]} Nfd7 {[%emt 0:00:31]} 5. Ngf3 {[%emt 0:01:08]} c5 {[%emt 0:00:33]} 6. c3 {[%emt 0:00:42]} cxd4 {[%emt 0:03:02]} 7. cxd4 {[%emt 0:00:44]} Bb4 {[%emt 0:00:32]} 8. a3 {[%emt 0:01:17]} Ba5 {[%emt 0:00:34]} 9. b4 {[%emt 0:02:27]} Bb6 {[%emt 0:00:34]} 10. Bd3 {[%emt 0:02:25]} Nc6 {[%emt 0:03:13]} 11. Nb3 {[%emt 0:04:14]} f6 {[%emt 0:02:09]} 12. exf6 {[%emt 0:02:04]} gxf6 {[%emt 0:05:26]} 13. O-O {[%emt 0:03:18]} Nf8 {[%emt 0:06:12]} 14. Re1 {[%emt 0:06:34]} Kf7 {[%emt 0:01:44]} 15. Bb2 {[%emt 0:07:20]} Ne7 {[%emt 0:13:21]} 16. Nh4 {[%emt 0:04:59]} h5 {[%emt 0:04:24]} 17. Qf3 {[%emt 0:03:05]} f5 {[%emt 0:02:49]} 18. Bc1 {[%emt 0:01:59]} Neg6 {[%emt 0:02:15]} 19. Nxg6 {[%emt 0:04:15]} Nxg6 {[%emt 0:00:34]} 20. a4 {[%emt 0:02:50]} Nh4 {[%emt 0:04:22]} 21. Qe3 {[%emt 0:02:46]} Rg8 {[%emt 0:06:37]} 22. Bf1 {[%emt 0:01:44]} Qf6 {[%emt 0:03:32]} 23. Qf4 {[%emt 0:03:20]} Rg4 {[%emt 0:05:57]} 24. Qe3 {[%emt 0:01:19]} Qg7 {[%emt 0:08:25]} 25. Qh3 {[%emt 0:03:06]} Bd7 {[%emt 0:02:01]} 26. f3 {[%emt 0:03:06]} Rxg2+ {[%emt 0:13:48]} 27. Bxg2 {[%emt 0:00:51]} Rg8 {[%emt 0:00:38]} 28. Ra2 {[%emt 0:00:53]} Bxd4+ {[%emt 0:00:56]} 29. Nxd4 {[%emt 0:02:27]} Qxd4+ {[%emt 0:00:09]} 30. Be3 {[%emt 0:00:46]} Qxb4 {[%emt 0:02:31]} 31. Rea1 {[%emt 0:05:48]} Qc3 {[%emt 0:01:47]} 32. Qxh4 {[%emt 0:02:50]} Qxe3+ {[%emt 0:00:34]} 33. Qf2 {[%emt 0:01:05]} f4 {[%emt 0:01:41]} 34. Kf1 {[%emt 0:03:44]} e5 {[%emt 0:01:35]} 35. Re1 {[%emt 0:01:32]} Qd3+ {[%emt 0:00:57]} 36. Qe2 {[%emt 0:00:53]} Qxe2+ {[%emt 0:00:55]} 37. Rexe2 {[%emt 0:00:49]} Kf6 {[%emt 0:00:34]} 38. Red2 {[%emt 0:01:09]} Bc6 {[%emt 0:00:43]} 39. Ra1 {[%emt 0:01:45]} e4 {[%emt 0:00:42]} 40. Rd4 {[%emt 0:01:14]} Ke5 {[%emt 0:00:38]} 41. Rad1 {[%emt 0:01:02]} e3 {[%emt 0:00:00]} 42. Bh3 {[%emt 0:00:00]} Rd8 {[%emt 0:00:00]} 43. Ke1 {[%emt 0:00:00]} Rg8 {[%emt 0:00:00]} 44. Kf1 {[%emt 0:00:00]} a6 {[%emt 0:00:00]} 45. Bd7 {[%emt 0:00:00]} h4 {[%emt 0:00:00]} 46. Bg4 {[%emt 0:00:00]} Kd6 {[%emt 0:00:00]} 47. Rxf4 {[%emt 0:00:00]} Ke5 {[%emt 0:00:00]} 48. Rfd4 {[%emt 0:00:00]} Rf8 {[%emt 0:00:00]} 49. Ke2 {[%emt 0:00:00]} b5 {[%emt 0:00:00]} 50. axb5 {[%emt 0:00:00]} Bxb5+ {[%emt 0:00:00]} 51. Kxe3 {[%emt 0:00:00]} Bc4 {[%emt 0:00:00]} 52. f4+ {[%emt 0:00:00]} Kd6 {[%emt 0:00:00]} 53. Bf3 {[%emt 0:00:00]} Kc5 {[%emt 0:00:00]} 54. Bxd5 {[%emt 0:00:00]} Re8+ {[%emt 0:00:00]} 55. Re4 {[%emt 0:00:00]} Rxe4+ {[%emt 0:00:25]} 56. Kxe4 {[%emt 0:00:00]} Bxd5+ {[%emt 0:01:28]} 57. Rxd5+ {[%emt 0:00:00]} Kc4 {[%emt 0:00:34]} 1-0

[Event "NOR-ch Women 2019"]
[Site "Bekkestua"]
[Date "2019.03.17"]
[Round "4.5"]
[White "Bjorkly, Sara Marie Skaug"]
[Black "Larre, Linnea"]
[Result "0-1"]
[ECO "A46"]
[WhiteElo "1368"]
[BlackElo "1599"]
[Annotator "NA"]
[PlyCount "132"]
[EventDate "2019.03.15"]
[EventType "swiss"]
[EventCountry "NOR"]
[SourceTitle "playchess.com"]
[Source "ChessBase"]
[SourceQuality "1"]
[TimeControl "5400+30"]

1. d4 {[%emt 0:00:33]} Nf6 {[%emt 0:01:26]} 2. Bf4 {[%emt 0:01:02]} c5 {[%emt 0:03:23]} 3. e3 {[%emt 0:04:16]} Nc6 {[%emt 0:01:52]} 4. Nf3 {[%emt 0:02:18]} e6 {[%emt 0:05:45]} 5. c4 {[%emt 0:03:38]} d5 {[%emt 0:02:13]} 6. Nc3 {[%emt 0:02:51]} cxd4 {[%emt 0:05:05]} 7. exd4 {[%emt 0:04:46]} g6 {[%emt 0:07:57]} 8. Be2 {[%emt 0:05:52]} Bg7 {[%emt 0:01:41]} 9. O-O {[%emt 0:14:32]} O-O {[%emt 0:00:44]} 10. cxd5 {[%emt 0:07:38]} Nxd5 {[%emt 0:01:32]} 11. Nxd5 {[%emt 0:02:37]} Qxd5 {[%emt 0:00:43]} 12. Be5 {[%emt 0:06:07]} Nxe5 {[%emt 0:02:06]} 13. dxe5 {[%emt 0:00:40]} Rd8 {[%emt 0:02:40]} 14. Bc4 {[%emt 0:06:16]} Qa5 {[%emt 0:01:12]} 15. Qe2 {[%emt 0:02:55]} Bd7 {[%emt 0:01:53]} 16. Rfe1 {[%emt 0:06:48]} Bc6 {[%emt 0:01:56]} 17. Ng5 {[%emt 0:08:39]} Rd2 {[%emt 0:03:13]} 18. Qg4 {[%emt 0:05:04]} Rxb2 {[%emt 0:06:09]} 19. Nxf7 {[%emt 0:05:20]} Bd5 {[%emt 0:03:16]} 20. Bxd5 {[%emt 0:03:02]} Qxd5 {[%emt 0:00:44]} 21. Ng5 {[%emt 0:01:38]} Re8 {[%emt 0:01:38]} 22. Qf3 {[%emt 0:02:14]} Qxf3 {[%emt 0:02:28]} 23. Nxf3 {[%emt 0:00:34]} h6 {[%emt 0:01:14]} 24. Rab1 {[%emt 0:00:48]} Rxa2 {[%emt 0:01:08]} 25. Rxb7 {[%emt 0:00:34]} a5 {[%emt 0:01:25]} 26. Ra7 {[%emt 0:00:36]} a4 {[%emt 0:01:14]} 27. Nd4 {[%emt 0:00:34]} Bxe5 {[%emt 0:01:04]} 28. Nb5 {[%emt 0:00:47]} Bg7 {[%emt 0:01:34]} 29. g4 {[%emt 0:00:32]} Bf8 {[%emt 0:01:27]} 30. Ra6 {[%emt 0:00:56]} Kf7 {[%emt 0:02:05]} 31. Nd6+ {[%emt 0:00:37]} Bxd6 {[%emt 0:00:39]} 32. Rxd6 {[%emt 0:00:32]} Rb2 {[%emt 0:06:25]} 33. Ra6 {[%emt 0:00:31]} Rb4 {[%emt 0:01:35]} 34. Ra1 {[%emt 0:00:31]} Rxg4+ {[%emt 0:00:49]} 35. Kf1 {[%emt 0:00:32]} Rc8 {[%emt 0:02:06]} 36. R1xa4 {[%emt 0:00:32]} Rc1+ {[%emt 0:00:57]} 37. Ke2 {[%emt 0:00:31]} Rc2+ {[%emt 0:01:45]} 38. Kf3 {[%emt 0:00:39]} Rg5 {[%emt 0:02:23]} 39. Ra2 {[%emt 0:00:44]} Rc3+ {[%emt 0:00:54]} 40. Ke2 {[%emt 0:00:36]} Rh5 {[%emt 0:01:58]} 41. R2a4 {[%emt 0:00:00]} Rxh2 {[%emt 0:00:00]} 42. Rf4+ {[%emt 0:00:00]} Ke7 {[%emt 0:00:00]} 43. Re4 {[%emt 0:00:00]} Rc2+ {[%emt 0:00:00]} 44. Kd3 {[%emt 0:00:00]} Rcxf2 {[%emt 0:00:00]} 45. Rexe6+ {[%emt 0:00:00]} Kf7 {[%emt 0:00:00]} 46. Rxg6 {[%emt 0:00:00]} h5 {[%emt 0:00:00]} 47. Rgc6 {[%emt 0:00:00]} Rd2+ {[%emt 0:00:00]} 48. Kc3 {[%emt 0:00:00]} Rc2+ {[%emt 0:00:00]} 49. Kd3 {[%emt 0:00:00]} Rxc6 {[%emt 0:00:00]} 50. Rxc6 {[%emt 0:00:00]} Kg7 {[%emt 0:00:00]} 51. Ke3 {[%emt 0:00:00]} Rg2 {[%emt 0:00:00]} 52. Kf3 {[%emt 0:00:00]} Rg1 {[%emt 0:00:00]} 53. Kf2 {[%emt 0:00:00]} Rg4 {[%emt 0:00:00]} 54. Rc1 {[%emt 0:00:00]} Kf6 {[%emt 0:00:08]} 55. Rh1 {[%emt 0:02:25]} Rg5 {[%emt 0:00:51]} 56. Rh4 {[%emt 0:01:19]} Rf5+ {[%emt 0:01:02]} 57. Kg2 {[%emt 0:01:06]} Kg6 {[%emt 0:01:00]} 58. Rh3 {[%emt 0:01:13]} Kh6 {[%emt 0:01:34]} 59. Kh2 {[%emt 0:01:33]} Kg5 {[%emt 0:03:50]} 60. Rg3+ {[%emt 0:00:48]} Kf4 {[%emt 0:02:28]} 61. Kh3 {[%emt 0:00:52]} Re5 {[%emt 0:01:30]} 62. Rg2 {[%emt 0:01:17]} Re1 {[%emt 0:01:35]} 63. Rf2+ {[%emt 0:00:49]} Ke4 {[%emt 0:01:38]} 64. Rg2 {[%emt 0:00:36]} Kf3 {[%emt 0:00:45]} 65. Kh2 {[%emt 0:00:39]} h4 {[%emt 0:00:42]} 66. Rg5 Re2+ {[%emt 0:01:42]} 0-1

[Event "NOR-ch Women 2019"]
[Site "Bekkestua"]
[Date "2019.03.17"]
[Round "4.6"]
[White "Lazareva, Emilie"]
[Black "Helliesen, Lykke-Merlot"]
[Result "0-1"]
[ECO "C48"]
[WhiteElo "1354"]
[BlackElo "1579"]
[Annotator "NA"]
[PlyCount "70"]
[EventDate "2019.03.15"]
[EventType "swiss"]
[EventCountry "NOR"]
[SourceTitle "playchess.com"]
[Source "ChessBase"]
[SourceQuality "1"]
[TimeControl "5400+30"]

1. e4 {[%emt 0:00:32]} e5 {[%emt 0:00:35]} 2. Nf3 {[%emt 0:00:43]} Nc6 {[%emt 0:00:51]} 3. Nc3 {[%emt 0:00:53]} Nf6 {[%emt 0:01:11]} 4. Bb5 {[%emt 0:00:45]} Bc5 {[%emt 0:01:48]} 5. Nxe5 {[%emt 0:02:28]} Nxe5 {[%emt 0:01:00]} 6. d4 {[%emt 0:00:42]} Bd6 {[%emt 0:00:48]} 7. dxe5 {[%emt 0:02:22]} Bxe5 {[%emt 0:00:47]} 8. Bg5 {[%emt 0:03:09]} h6 {[%emt 0:02:01]} 9. Bh4 {[%emt 0:01:22]} c6 {[%emt 0:03:44]} 10. Bc4 {[%emt 0:02:26]} O-O {[%emt 0:01:59]} 11. O-O {[%emt 0:01:06]} d6 {[%emt 0:01:22]} 12. f4 {[%emt 0:03:18]} Bxc3 {[%emt 0:05:27]} 13. bxc3 {[%emt 0:00:38]} Qb6+ {[%emt 0:01:23]} 14. Bf2 {[%emt 0:04:10]} Qa5 {[%emt 0:01:55]} 15. Qd3 {[%emt 0:04:28]} Re8 {[%emt 0:02:51]} 16. Rfe1 {[%emt 0:02:10]} b5 {[%emt 0:14:55]} 17. Bb3 {[%emt 0:03:29]} Ba6 {[%emt 0:09:15]} 18. c4 {[%emt 0:05:02]} b4 {[%emt 0:09:03]} 19. Qd4 {[%emt 0:03:50]} c5 {[%emt 0:07:40]} 20. Qd3 {[%emt 0:01:36]} Bb7 {[%emt 0:02:23]} 21. e5 {[%emt 0:02:07]} dxe5 {[%emt 0:00:45]} 22. fxe5 {[%emt 0:02:20]} Rad8 {[%emt 0:01:12]} 23. Qf5 {[%emt 0:05:06]} Nh7 {[%emt 0:04:47]} 24. e6 {[%emt 0:03:52]} fxe6 {[%emt 0:03:00]} 25. Rxe6 {[%emt 0:00:51]} Rxe6 {[%emt 0:04:37]} 26. Qxe6+ {[%emt 0:00:44]} Kh8 {[%emt 0:01:03]} 27. Qe5 {[%emt 0:03:45]} Rc8 {[%emt 0:01:16]} 28. Rd1 {[%emt 0:01:47]} Nf6 {[%emt 0:00:59]} 29. Rd4 {[%emt 0:03:55]} Re8 {[%emt 0:01:48]} 30. Qf5 {[%emt 0:16:46]} Bc8 {[%emt 0:01:02]} 31. Qg6 {[%emt 0:02:23]} cxd4 {[%emt 0:00:54]} 32. Bxd4 {[%emt 0:00:42]} Bd7 {[%emt 0:06:41]} 33. Bxf6 {[%emt 0:01:18]} Qb6+ {[%emt 0:00:53]} 34. c5 {[%emt 0:03:20]} Qxc5+ {[%emt 0:01:56]} 35. Kf1 {[%emt 0:01:10]} Bb5+ {[%emt 0:00:34]} 0-1

[Event "NOR-ch Women 2019"]
[Site "Bekkestua"]
[Date "2019.03.17"]
[Round "4.7"]
[White "Nordquelle, Amelia"]
[Black "Selvik, Elma"]
[Result "1-0"]
[ECO "D07"]
[WhiteElo "1595"]
[BlackElo "1329"]
[Annotator "NA"]
[PlyCount "115"]
[EventDate "2019.03.15"]
[EventType "swiss"]
[EventCountry "NOR"]
[SourceTitle "playchess.com"]
[Source "ChessBase"]
[SourceQuality "1"]
[TimeControl "5400+30"]

1. d4 {[%emt 0:00:35]} d5 {[%emt 0:00:44]} 2. c4 {[%emt 0:00:35]} e6 {[%emt 0:00:42]} 3. Nc3 {[%emt 0:00:40]} Nc6 {[%emt 0:02:01]} 4. Nf3 {[%emt 0:00:44]} Nf6 {[%emt 0:01:58]} 5. Bf4 {[%emt 0:00:55]} Bd6 {[%emt 0:03:40]} 6. Bg3 {[%emt 0:00:40]} dxc4 {[%emt 0:02:44]} 7. e4 {[%emt 0:01:14]} Bb4 {[%emt 0:01:38]} 8. Bh4 {[%emt 0:01:17]} Be7 {[%emt 0:05:19]} 9. Bxc4 {[%emt 0:03:03]} O-O {[%emt 0:02:38]} 10. O-O {[%emt 0:01:08]} b6 {[%emt 0:01:59]} 11. Re1 {[%emt 0:01:03]} Bb7 {[%emt 0:01:52]} 12. a3 {[%emt 0:04:51]} Qd7 {[%emt 0:05:03]} 13. Qa4 {[%emt 0:02:19]} Rfd8 {[%emt 0:10:02]} 14. Rad1 {[%emt 0:01:48]} a6 {[%emt 0:02:03]} 15. d5 {[%emt 0:01:43]} exd5 {[%emt 0:04:15]} 16. exd5 {[%emt 0:01:04]} Na5 {[%emt 0:03:25]} 17. Qxd7 {[%emt 0:01:56]} Rxd7 {[%emt 0:01:42]} 18. Ba2 {[%emt 0:00:54]} c5 {[%emt 0:06:40]} 19. Ne5 {[%emt 0:03:20]} Rdd8 {[%emt 0:04:45]} 20. d6 {[%emt 0:01:41]} Rxd6 {[%emt 0:03:49]} 21. Rxd6 {[%emt 0:01:13]} Bxd6 {[%emt 0:01:21]} 22. Nxf7 {[%emt 0:01:00]} Bf8 {[%emt 0:04:16]} 23. Re6 {[%emt 0:03:54]} c4 {[%emt 0:04:31]} 24. Ne5 {[%emt 0:02:25]} b5 {[%emt 0:02:47]} 25. Bxf6 {[%emt 0:01:59]} gxf6 {[%emt 0:04:33]} 26. Rxf6 {[%emt 0:00:45]} Bg7 {[%emt 0:02:29]} 27. Re6 {[%emt 0:01:20]} Rd8 {[%emt 0:03:10]} 28. h3 {[%emt 0:03:10]} Bxe5 {[%emt 0:01:49]} 29. Rxe5 {[%emt 0:00:49]} Rd2 {[%emt 0:01:08]} 30. Re2 {[%emt 0:00:37]} Rd6 {[%emt 0:02:27]} 31. Bb1 {[%emt 0:01:00]} Rd7 {[%emt 0:01:36]} 32. Bf5 {[%emt 0:00:57]} Rg7 {[%emt 0:01:02]} 33. g4 {[%emt 0:01:18]} Nb3 {[%emt 0:01:07]} 34. Re8+ {[%emt 0:01:20]} Kf7 {[%emt 0:00:59]} 35. Rd8 {[%emt 0:01:00]} a5 {[%emt 0:02:23]} 36. Nxb5 {[%emt 0:01:48]} Ke7 {[%emt 0:02:39]} 37. Rd7+ {[%emt 0:01:18]} Kf8 {[%emt 0:01:00]} 38. Rxg7 {[%emt 0:01:48]} Kxg7 {[%emt 0:00:34]} 39. Be6 {[%emt 0:01:42]} Nd2 {[%emt 0:01:07]} 40. f4 {[%emt 0:01:55]} Kf6 {[%emt 0:01:53]} 41. Nd6 {[%emt 0:02:01]} Kxe6 {[%emt 0:00:00]} 42. Nxb7 {[%emt 0:00:00]} Nb3 {[%emt 0:00:00]} 43. Kf2 {[%emt 0:00:00]} h6 {[%emt 0:00:00]} 44. Ke3 {[%emt 0:00:00]} Kd5 {[%emt 0:00:00]} 45. Nd8 {[%emt 0:00:00]} Nc5 {[%emt 0:00:00]} 46. Nf7 {[%emt 0:00:00]} Na4 {[%emt 0:00:00]} 47. f5 {[%emt 0:00:00]} Nxb2 {[%emt 0:00:00]} 48. h4 {[%emt 0:00:00]} c3 {[%emt 0:00:00]} 49. g5 {[%emt 0:00:00]} hxg5 {[%emt 0:00:00]} 50. hxg5 {[%emt 0:00:00]} Kc4 {[%emt 0:00:00]} 51. Ne5+ {[%emt 0:00:00]} Kb3 {[%emt 0:00:00]} 52. g6 {[%emt 0:00:00]} c2 {[%emt 0:00:00]} 53. Kd2 {[%emt 0:00:00]} Nd1 {[%emt 0:05:46]} 54. g7 {[%emt 0:00:00]} Kb2 {[%emt 0:00:36]} 55. Nd3+ {[%emt 0:00:00]} Kb1 {[%emt 0:00:58]} 56. g8=Q {[%emt 0:00:00]} Nf2 {[%emt 0:00:42]} 57. Qb3+ {[%emt 0:00:00]} Ka1 {[%emt 0:00:34]} 58. Qb2# {[%emt 0:00:00]} 1-0